Workbook

Sheet Ergon >>>

Sheet Input Data
A1: Public Lighting Quantity Inputs | B1: Units | C1: 2020-21 | D1: 2021-22 | E1: 2022-23 | F1: 2023-24 | G1: 2024-25
A3: Opening Population Public Lights
A5: NPL1 (Energex Owned & Operated)
A6: Major Conventional (SV) | B6: # | C6: 7799.111953 | D6: 7267.382154 | E6: 6547.921099 | F6: 5680.850729 | G6: 4673.579178
A7: Minor Conventional (SV) | B7: # | C7: 20028.94098 | D7: 18639.9658 | E7: 16778.8864 | F7: 14557.72932 | G7: 11986.24631
A8: Major Conventional (non SV) | B8: # | C8: 17973.26842 | D8: 16747.88244 | E8: 15089.86461 | F8: 13091.67705 | G8: 10770.39201
A9: Minor Conventional (non SV) | B9: # | C9: 46157.24643 | D9: 42956.31486 | E9: 38667.4061 | F9: 33548.6884 | G9: 27622.63493
A10: Major LED | B10: # | C10: 169.6196308 | D10: 2086.735404 | E10: 4634.214286 | F10: 7669.472219 | G10: 11178.02882
A11: Minor LED | B11: # | C11: 419.8125866 | D11: 5164.719338 | E11: 11489.7075 | F11: 19034.58228 | G11: 27757.11876
A12: Total | B12: # | C12: =SUM(C6:C11) -> 92548 | D12: =SUM(D6:D11) -> 92863 | E12: 93208 | F12: 93583 | G12: 93988
A14: NPL2 (Gifted & Energex Operated)
A15: Major Conventional (SV) | B15: # | C15: 6289.228588 | D15: 5885.635325 | E15: 5334.48309 | F15: 4672.740361 | G15: 3903.563402
A16: Minor Conventional (SV) | B16: # | C16: 16648.06696 | D16: 15559.76445 | E16: 14101.08657 | F16: 12363.76835 | G16: 10359.80844
A17: Major Conventional (non SV) | B17: # | C17: 9310.235194 | D17: 8712.777468 | E17: 7896.881391 | F17: 6917.273104 | G17: 5778.62497
A18: Minor Conventional (non SV) | B18: # | C18: 24644.90148 | D18: 23033.83707 | E18: 20874.48892 | F18: 18302.65662 | G18: 15336.10232
A19: Major LED | B19: # | C19: 119.5362185 | D19: 1470.587207 | E19: 3187.635519 | F19: 5178.986535 | G19: 7436.811628
A20: Minor LED | B20: # | C20: 291.0315642 | D20: 3580.398481 | E20: 7788.424506 | F20: 12687.57502 | G20: 18248.08924
A21: Total | B21: # | C21: =SUM(C15:C20) -> 57303 | D21: =SUM(D15:D20) -> 58243 | E21: 59183 | F21: 60123 | G21: 61063
A22: Total Opening Lights | B22: # | C22: =SUM(C12,C21) -> 149851 | D22: =SUM(D12,D21) -> 151106 | E22: 152391 | F22: 153706 | G22: 155051
A24: Public Lights Additions by Type
A26: NPL1 (Ergon Owned & Operated)
A27: Major Conventional (SV) | B27: # | C27: 0 | D27: 0 | E27: 0 | F27: 0 | G27: 0
A28: Minor Conventional (SV) | B28: # | C28: 0 | D28: 0 | E28: 0 | F28: 0 | G28: 0
A29: Major Conventional (non SV) | B29: # | C29: 0 | D29: 0 | E29: 0 | F29: 0 | G29: 0
A30: Minor Conventional (non SV) | B30: # | C30: 0 | D30: 0 | E30: 0 | F30: 0 | G30: 0
A31: Major LED | B31: # | C31: 2086.735404 | D31: 2547.478882 | E31: 3035.257933 | F31: 3508.556597 | G31: 4009.859676
A32: Minor LED | B32: # | C32: 5164.719338 | D32: 6324.988161 | E32: 7544.874779 | F32: 8722.536482 | G32: 10015.05028
A33: Total | B33: # | C33: =SUM(C27:C32) -> 7251.454742 | D33: 8872.467043 | E33: 10580.13271 | F33: 12231.09308 | G33: 14024.90996
A35: NPL2 (Gifted & Ergon Operated)
A36: Major Conventional (SV) | B36: # | C36: 0 | D36: 0 | E36: 0 | F36: 0 | G36: 0
A37: Minor Conventional (SV) | B37: # | C37: 0 | D37: 0 | E37: 0 | F37: 0 | G37: 0
A38: Major Conventional (non SV) | B38: # | C38: 0 | D38: 0 | E38: 0 | F38: 0 | G38: 0
A39: Minor Conventional (non SV) | B39: # | C39: 0 | D39: 0 | E39: 0 | F39: 0 | G39: 0
A40: Major LED | B40: # | C40: 1470.587207 | D40: 1717.048312 | E40: 1991.351016 | F40: 2257.825093 | G40: 2552.909333
A41: Minor LED | B41: # | C41: 3580.398481 | D41: 4208.026025 | E41: 4899.150517 | F41: 5560.514213 | G41: 6334.91879
A42: Total | B42: # | C42: =SUM(C36:C41) -> 5050.985688 | D42: 5925.074337 | E42: 6890.501533 | F42: 7818.339306 | G42: 8887.828123
A43: Total Additions | B43: # | C43: =SUM(C33,C42) -> 12302.44043 | D43: 14797.54138 | E43: 17470.63425 | F43: 20049.43238 | G43: 22912.73808
A45: Public Lights Disposals by Type
A47: NPL1 (Ergon Owned & Operated)
A48: Major Conventional (SV) | B48: # | C48: 583.0592636 | D48: 719.4610548 | E48: 867.0703705 | F48: 1007.271551 | G48: 1155.947291
A49: Minor Conventional (SV) | B49: # | C49: 1516.016814 | D49: 1861.0794 | E49: 2221.15708 | F49: 2571.483014 | G49: 2956.564929
A50: Major Conventional (non SV) | B50: # | C50: 1343.67614 | D50: 1658.017827 | E50: 1998.187563 | F50: 2321.285046 | G50: 2663.912385
A51: Minor Conventional (non SV) | B51: # | C51: 3493.702524 | D51: 4288.908762 | E51: 5118.717699 | F51: 5926.053468 | G51: 6813.485354
A52: Major LED | B52: # | C52: 0 | D52: 0 | E52: 0 | F52: 0 | G52: 0
A53: Minor LED | B53: # | C53: 0 | D53: 0 | E53: 0 | F53: 0 | G53: 0
A54: Total | B54: # | C54: =SUM(C48:C53) -> 6936.454742 | D54: 8527.467043 | E54: 10205.13271 | F54: 11826.09308 | G54: 13589.90996
A56: NPL2 (Gifted & Ergon Operated)
A57: Major Conventional (SV) | B57: # | C57: 451.7866253 | D57: 551.1522349 | E57: 661.7427289 | F57: 769.176959 | G57: 888.1459357
A58: Minor Conventional (SV) | B58: # | C58: 1205.637571 | D58: 1458.677877 | E58: 1737.318218 | F58: 2003.959913 | G58: 2316.176248
A59: Major Conventional (non SV) | B59: # | C59: 668.8005818 | D59: 815.8960773 | E59: 979.608287 | F59: 1138.648134 | G59: 1314.763398
A60: Minor Conventional (non SV) | B60: # | C60: 1784.760911 | D60: 2159.348148 | E60: 2571.832299 | F60: 2966.5543 | G60: 3428.742542
A61: Major LED | B61: # | C61: 0 | D61: 0 | E61: 0 | F61: 0 | G61: 0
A62: Minor LED | B62: # | C62: 0 | D62: 0 | E62: 0 | F62: 0 | G62: 0
A63: Total | B63: # | C63: =SUM(C57:C62) -> 4110.985688 | D63: 4985.074337 | E63: 5950.501533 | F63: 6878.339306 | G63: 7947.828123
A64: Total Disposals | B64: # | C64: =SUM(C54,C63) -> 11047.44043 | D64: 13512.54138 | E64: 16155.63425 | F64: 18704.43238 | G64: 21537.73808
A66: Public Lights Contributed Assets
A68: Contributed Assets (Conventional)
A69: Gifted | B69: $M Nominal | C69: 0.4039145948 | D69: 0.4110493829 | E69: 0.3910616679 | F69: 0.3977369284 | G69: 0.3601594432
A70: Cash Contribution | B70: $M Nominal | C70: 2.111814883 | D70: 2.111814883 | E70: 2.111814883 | F70: 2.111814883 | G70: 2.111814883
A71: Total Contributed | B71: $M Nominal | C71: =SUM(C69:C70) -> 2.515729478 | D71: =SUM(D69:D70) -> 2.522864266 | E71: 2.502876551 | F71: 2.509551812 | G71: 2.471974327
A73: Contributed Assets (LED)
A74: Gifted | B74: $M Nominal | C74: 8.022386244 | D74: 8.429059369 | E74: 8.878908666 | F74: 9.312172493 | G74: 9.807646094
A75: Cash Contribution | B75: $M Nominal | C75: 2.111814883 | D75: 2.111814883 | E75: 2.111814883 | F75: 2.111814883 | G75: 2.111814883
A76: Total Contributed | B76: $M Nominal | C76: =SUM(C74:C75) -> 10.13420113 | D76: =SUM(D74:D75) -> 10.54087425 | E76: 10.99072355 | F76: 11.42398738 | G76: 11.91946098
A78: Pricing Allocators
A79: Proportion of asset base related to refurbishment | B79: % | C79: 0.1
A80: Relativity Major to Minor
A81: Opex + tax | B81: # | C81: 1.5
A82: Asset charge | B82: # | C82: 1.8
A84: Price Smoothing Inputs
A85: Expected CPI | B85: % | C85: 0.025
A86: Discount rate for smoothing | B86: % | C86: 0.05492
A87: X factor | B87: % | C87: 0
A88: Z factor Conventional | B88: % | C88: 0.2045766026
A89: Z factor LED | B89: % | C89: 0.1154625482
A91: % of PLAB associated with Poles, cabling and some residual brackets | B91: % | C91: 0.7

Sheet Public Lighting Pricing
A1: Public Lighting Price Calculations | B1: Units | C1: 2020-21 | D1: 2021-22 | E1: 2022-23 | F1: 2023-24 | G1: 2024-25
A3: Building Block Revenue - Linked to PL PTRM
A5: Opex Charge
A6: O&M Conventional | B6: $M Nominal | C6: 13.05938275 | D6: 12.2876109 | E6: 11.11984141 | F6: 9.589832477 | G6: 7.64016531
A7: O&M LED | B7: $M Nominal | C7: 0.6086838225 | D7: 1.58265377 | E7: 2.720605738 | F7: 4.258471479 | G7: 6.096597306
A8: Carry-over amounts Conventional | B8: $M Nominal | C8: 0 | D8: 0 | E8: 0 | F8: 0 | G8: 0
A9: Carry-over amounts LED | B9: $M Nominal | C9: 0 | D9: 0 | E9: 0 | F9: 0 | G9: 0
A10: Benchmark Tax liability Conventional | B10: $M Nominal | C10: =1.00317406959349*(C125+C126)/C129 -> 0.9555000252 | D10: =0.990862955391002*(D125+D126)/D129 -> 0.8622211548 | E10: =1.00995590023751*(E125+E126)/E129 -> 0.7734813736 | F10: =1.02916555307366*(F125+F126)/F129 -> 0.665205317 | G10: =1.05163753470235*(G125+G126)/G129 -> 0.5379250222 | I10: Tax Building Block for ACS Public Lighting LED is pro-rata allocated to both Conventional and LED based on the porportion of lights in the total public light population
A11: Tax liability attributable to O&M Revenue | B11: $M Nominal | C11: 0 | D11: 0 | E11: 0 | F11: 0 | G11: 0
A12: Tax liability attributable to Capex Revenue | B12: $M Nominal | C12: 0 | D12: 0 | E12: 0 | F12: 0 | G12: 0
A13: Tax liability attributable to Gifted Assets | B13: $M Nominal | C13: =C10*'Input Data'!C69/'Input Data'!C$71 -> 0.1534109327 | D13: =D10*'Input Data'!D69/'Input Data'!D$71 -> 0.1404813879 | E13: =E10*'Input Data'!E69/'Input Data'!E$71 -> 0.120852511 | F13: =F10*'Input Data'!F69/'Input Data'!F$71 -> 0.1054278769 | G13: =G10*'Input Data'!G69/'Input Data'!G$71 -> 0.07837410543
A14: Tax liability attributable to Contributed Assets | B14: $M Nominal | C14: =C10*'Input Data'!C70/'Input Data'!C$71 -> 0.8020890926 | D14: =D10*'Input Data'!D70/'Input Data'!D$71 -> 0.7217397669 | E14: =E10*'Input Data'!E70/'Input Data'!E$71 -> 0.6526288625 | F14: =F10*'Input Data'!F70/'Input Data'!F$71 -> 0.5597774401 | G14: =G10*'Input Data'!G70/'Input Data'!G$71 -> 0.4595509168
A15: Benchmark Tax liability LED | B15: $M Nominal | C15: =1.00317406959349*(C127+C128)/C129 -> 0.04767404437 | D15: =0.990862955391002*(D127+D128)/D129 -> 0.1286418006 | E15: =1.00995590023751*(E127+E128)/E129 -> 0.2364745267 | F15: =1.02916555307366*(F127+F128)/F129 -> 0.3639602361 | G15: =1.05163753470235*(G127+G128)/G129 -> 0.5137125125 | I15: Tax Building Block for ACS Public Lighting LED is pro-rata allocated to both Conventional and LED based on the porportion of lights in the total public light population
A16: Tax liability attributable to O&M Revenue | B16: $M Nominal | C16: 0 | D16: 0 | E16: 0 | F16: 0 | G16: 0
A17: Tax liability attributable to Capex Revenue | B17: $M Nominal | C17: 0 | D17: 0 | E17: 0 | F17: 0 | G17: 0
A18: Tax liability attributable to Gifted Assets | B18: $M Nominal | C18: =C$15*'Input Data'!C74/'Input Data'!C$76 -> 0.03773949154 | D18: =D$15*'Input Data'!D74/'Input Data'!D$76 -> 0.1028690172 | E18: =E$15*'Input Data'!E74/'Input Data'!E$76 -> 0.1910370791 | F18: =F$15*'Input Data'!F74/'Input Data'!F$76 -> 0.2966792931 | G18: =G$15*'Input Data'!G74/'Input Data'!G$76 -> 0.4226961711
A19: Tax liability attributable to Contributed Assets | B19: $M Nominal | C19: =C$15*'Input Data'!C75/'Input Data'!C$76 -> 0.009934552827 | D19: =D$15*'Input Data'!D75/'Input Data'!D$76 -> 0.02577278341 | E19: =E$15*'Input Data'!E75/'Input Data'!E$76 -> 0.04543744756 | F19: =F$15*'Input Data'!F75/'Input Data'!F$76 -> 0.067280943 | G19: =G$15*'Input Data'!G75/'Input Data'!G$76 -> 0.0910163414
A20: Total Opex Charge Conventional | B20: $M Nominal | C20: =SUM(C6,C8)+C11+C6/(C6+C24+C25)*(C13+C14) -> 13.59058142 | D20: =SUM(D6,D8)+D11+D6/(D6+D24+D25)*(D13+D14) -> 12.75990457 | E20: 11.53396044 | F20: 9.935931273 | G20: 7.913962989
A21: Total Opex Charge LED | B21: $M Nominal | C21: =SUM(C7,C9)+C16+C7/(C7+C28+C29)*(C18+C19) -> 0.6306049794 | D21: =SUM(D7,D9)+D16+D7/(D7+D28+D29)*(D18+D19) -> 1.640376739 | E21: 2.824220147 | F21: 4.418910106 | G21: 6.324985618
A23: Capex Charge Conventional | C23: 1 | D23: 1 | E23: 1 | F23: 1 | G23: 1
A24: Return on capital | B24: $M Nominal | C24: 4.324470705 | D24: 3.842847148 | E24: 3.285267435 | F24: 2.630223084 | G24: 1.877235383
A25: Return of capital | B25: $M Nominal | C25: 6.106868778 | D25: 6.301852002 | E25: 6.36425849 | F25: 6.211697529 | G25: 5.49308485
A26: Total Capex Charge Conventional | B26: $M Nominal | C26: =(SUM(C24:C25)+C12+(C24+C25)/(C6+C24+C25)*(C13+C14))*C23 -> 10.85564083 | D26: =(SUM(D24:D25)+D12+(D24+D25)/(D6+D24+D25)*(D13+D14))*D23 -> 10.53462663 | E26: 10.00888827 | F26: 9.161027134 | G26: 7.634447577
A27: Capex Charge LED
A28: Return on capital | B28: $M Nominal | C28: 0.340656532 | D28: 0.9667761504 | E28: 1.662272866 | F28: 2.449984926 | G28: 3.31610921
A29: Return of capital | B29: $M Nominal | C29: 0.374422785 | D29: 0.9776829843 | E29: 1.826238032 | F29: 2.952024399 | G29: 4.300334663
A30: Total Capex Charge LED | B30: $M Nominal | C30: =SUM(C28:C29)+C17+(C28+C29)/(C7+C28+C29)*(C18+C19) -> 0.7408322044 | D30: =SUM(D28:D29)+D17+(D28+D29)/(D7+D28+D29)*(D18+D19) -> 2.015377966 | E30: 3.621371015 | F30: 5.605530934 | G30: 7.901768073
A32: ARR for Conventional | B32: $M Nominal | C32: =SUM(C20,C26) -> 24.44622225 | D32: =SUM(D20,D26) -> 23.29453121 | E32: 21.54284871 | F32: 19.09695841 | G32: 15.54841057
A33: ARR for LED | B33: $M Nominal | C33: =SUM(C21,C30) -> 1.371437184 | D33: =SUM(D21,D30) -> 3.655754705 | E33: 6.445591162 | F33: 10.02444104 | G33: 14.22675369
A34: ARR for Total | B34: $M Nominal | C34: =C32+C33 -> 25.81765944 | D34: =D32+D33 -> 26.95028591 | E34: =E32+E33 -> 27.98843987 | F34: =F32+F33 -> 29.12139945 | G34: =G32+G33 -> 29.77516426
A36: Opex and Capex Charge Components
A37: Opex Charge for Conventional Lights | B37: $M Nominal | C37: =C20 -> 13.59058142 | D37: 12.75990457 | E37: 11.53396044 | F37: 9.935931273 | G37: 7.913962989
A38: Opex Charge for LED | B38: $M Nominal | C38: 0.6306049794 | D38: 1.640376739 | E38: 2.824220147 | F38: 4.418910106 | G38: 6.324985618
A39: Capex Charge for Conventional Lights | B39: $M Nominal | C39: =C26 -> 10.85564083 | D39: =D26 -> 10.53462663 | E39: 10.00888827 | F39: 9.161027134 | G39: 7.634447577
A40: Capex Charge for LED | B40: $M Nominal | C40: =C30 -> 0.7408322044 | D40: =D30 -> 2.015377966 | E40: =E30 -> 3.621371015 | F40: =F30 -> 5.605530934 | G40: =G30 -> 7.901768073
A42: Public Lights Population
A44: Opening Population Public Lights
A45: NPL1 (Ergon Owned & Operated)
A46: Major Conventional | B46: # | C46: ='Input Data'!C6+'Input Data'!C8 -> 25772.38037 | D46: ='Input Data'!D6+'Input Data'!D8 -> 24015.2646 | E46: ='Input Data'!E6+'Input Data'!E8 -> 21637.78571 | F46: ='Input Data'!F6+'Input Data'!F8 -> 18772.52778 | G46: ='Input Data'!G6+'Input Data'!G8 -> 15443.97118
A47: Minor Conventional | B47: # | C47: ='Input Data'!C7+'Input Data'!C9 -> 66186.18741 | D47: ='Input Data'!D7+'Input Data'!D9 -> 61596.28066 | E47: ='Input Data'!E7+'Input Data'!E9 -> 55446.2925 | F47: ='Input Data'!F7+'Input Data'!F9 -> 48106.41772 | G47: ='Input Data'!G7+'Input Data'!G9 -> 39608.88124
A48: Major LED | B48: # | C48: ='Input Data'!C10 -> 169.6196308 | D48: ='Input Data'!D10 -> 2086.735404 | E48: ='Input Data'!E10 -> 4634.214286 | F48: ='Input Data'!F10 -> 7669.472219 | G48: ='Input Data'!G10 -> 11178.02882
A49: Minor LED | B49: # | C49: ='Input Data'!C11 -> 419.8125866 | D49: ='Input Data'!D11 -> 5164.719338 | E49: ='Input Data'!E11 -> 11489.7075 | F49: ='Input Data'!F11 -> 19034.58228 | G49: ='Input Data'!G11 -> 27757.11876
A50: Total | B50: # | C50: =SUM(C46:C49) -> 92548 | D50: =SUM(D46:D49) -> 92863 | E50: =SUM(E46:E49) -> 93208 | F50: =SUM(F46:F49) -> 93583 | G50: =SUM(G46:G49) -> 93988
A52: NPL2 (Gifted & Ergon Operated)
A53: Major Conventional | B53: # | C53: ='Input Data'!C15+'Input Data'!C17 -> 15599.46378 | D53: ='Input Data'!D15+'Input Data'!D17 -> 14598.41279 | E53: ='Input Data'!E15+'Input Data'!E17 -> 13231.36448 | F53: ='Input Data'!F15+'Input Data'!F17 -> 11590.01346 | G53: ='Input Data'!G15+'Input Data'!G17 -> 9682.188372
A54: Minor Conventional | B54: # | C54: ='Input Data'!C16+'Input Data'!C18 -> 41292.96844 | D54: ='Input Data'!D16+'Input Data'!D18 -> 38593.60152 | E54: ='Input Data'!E16+'Input Data'!E18 -> 34975.57549 | F54: ='Input Data'!F16+'Input Data'!F18 -> 30666.42498 | G54: ='Input Data'!G16+'Input Data'!G18 -> 25695.91076
A55: Major LED | B55: # | C55: ='Input Data'!C19 -> 119.5362185 | D55: ='Input Data'!D19 -> 1470.587207 | E55: ='Input Data'!E19 -> 3187.635519 | F55: ='Input Data'!F19 -> 5178.986535 | G55: ='Input Data'!G19 -> 7436.811628
A56: Minor LED | B56: # | C56: ='Input Data'!C20 -> 291.0315642 | D56: ='Input Data'!D20 -> 3580.398481 | E56: ='Input Data'!E20 -> 7788.424506 | F56: ='Input Data'!F20 -> 12687.57502 | G56: ='Input Data'!G20 -> 18248.08924
A57: Total | B57: # | C57: =SUM(C53:C56) -> 57303 | D57: =SUM(D53:D56) -> 58243 | E57: =SUM(E53:E56) -> 59183 | F57: =SUM(F53:F56) -> 60123 | G57: =SUM(G53:G56) -> 61063
A58: Total Opening Lights | B58: # | C58: =SUM(C50,C57) -> 149851 | D58: =SUM(D50,D57) -> 151106 | E58: =SUM(E50,E57) -> 152391 | F58: =SUM(F50,F57) -> 153706 | G58: =SUM(G50,G57) -> 155051
A60: Plus Additions
A61: NPL1 (Ergon Owned & Operated)
A62: Major Conventional | B62: # | C62: ='Input Data'!C27+'Input Data'!C29 -> 0 | D62: ='Input Data'!D27+'Input Data'!D29 -> 0 | E62: ='Input Data'!E27+'Input Data'!E29 -> 0 | F62: ='Input Data'!F27+'Input Data'!F29 -> 0 | G62: ='Input Data'!G27+'Input Data'!G29 -> 0
A63: Minor Conventional | B63: # | C63: ='Input Data'!C28+'Input Data'!C30 -> 0 | D63: ='Input Data'!D28+'Input Data'!D30 -> 0 | E63: ='Input Data'!E28+'Input Data'!E30 -> 0 | F63: ='Input Data'!F28+'Input Data'!F30 -> 0 | G63: ='Input Data'!G28+'Input Data'!G30 -> 0
A64: Major LED | B64: # | C64: ='Input Data'!C31 -> 2086.735404 | D64: ='Input Data'!D31 -> 2547.478882 | E64: ='Input Data'!E31 -> 3035.257933 | F64: ='Input Data'!F31 -> 3508.556597 | G64: ='Input Data'!G31 -> 4009.859676
A65: Minor LED | B65: # | C65: ='Input Data'!C32 -> 5164.719338 | D65: ='Input Data'!D32 -> 6324.988161 | E65: ='Input Data'!E32 -> 7544.874779 | F65: ='Input Data'!F32 -> 8722.536482 | G65: ='Input Data'!G32 -> 10015.05028
A66: Total | B66: # | C66: =SUM(C62:C65) -> 7251.454742 | D66: =SUM(D62:D65) -> 8872.467043 | E66: =SUM(E62:E65) -> 10580.13271 | F66: =SUM(F62:F65) -> 12231.09308 | G66: =SUM(G62:G65) -> 14024.90996
A68: NPL2 (Gifted & Ergon Operated)
A69: Major Conventional | B69: # | C69: ='Input Data'!C36+'Input Data'!C38 -> 0 | D69: ='Input Data'!D36+'Input Data'!D38 -> 0 | E69: ='Input Data'!E36+'Input Data'!E38 -> 0 | F69: ='Input Data'!F36+'Input Data'!F38 -> 0 | G69: ='Input Data'!G36+'Input Data'!G38 -> 0
A70: Minor Conventional | B70: # | C70: ='Input Data'!C37+'Input Data'!C39 -> 0 | D70: ='Input Data'!D37+'Input Data'!D39 -> 0 | E70: ='Input Data'!E37+'Input Data'!E39 -> 0 | F70: ='Input Data'!F37+'Input Data'!F39 -> 0 | G70: ='Input Data'!G37+'Input Data'!G39 -> 0
A71: Major LED | B71: # | C71: ='Input Data'!C40 -> 1470.587207 | D71: ='Input Data'!D40 -> 1717.048312 | E71: ='Input Data'!E40 -> 1991.351016 | F71: ='Input Data'!F40 -> 2257.825093 | G71: ='Input Data'!G40 -> 2552.909333
A72: Minor LED | B72: # | C72: ='Input Data'!C41 -> 3580.398481 | D72: ='Input Data'!D41 -> 4208.026025 | E72: ='Input Data'!E41 -> 4899.150517 | F72: ='Input Data'!F41 -> 5560.514213 | G72: ='Input Data'!G41 -> 6334.91879
A73: Total | B73: # | C73: =SUM(C69:C72) -> 5050.985688 | D73: =SUM(D69:D72) -> 5925.074337 | E73: =SUM(E69:E72) -> 6890.501533 | F73: =SUM(F69:F72) -> 7818.339306 | G73: =SUM(G69:G72) -> 8887.828123
A74: Total Additions | B74: # | C74: =SUM(C66,C73) -> 12302.44043 | D74: =SUM(D66,D73) -> 14797.54138 | E74: =SUM(E66,E73) -> 17470.63425 | F74: =SUM(F66,F73) -> 20049.43238 | G74: =SUM(G66,G73) -> 22912.73808
A76: Less Disposals
A77: NPL1 (Ergon Owned & Operated)
A78: Major Conventional | B78: # | C78: ='Input Data'!C48+'Input Data'!C50 -> 1926.735404 | D78: ='Input Data'!D48+'Input Data'!D50 -> 2377.478882 | E78: ='Input Data'!E48+'Input Data'!E50 -> 2865.257933 | F78: ='Input Data'!F48+'Input Data'!F50 -> 3328.556597 | G78: ='Input Data'!G48+'Input Data'!G50 -> 3819.859676
A79: Minor Conventional | B79: # | C79: ='Input Data'!C49+'Input Data'!C51 -> 5009.719338 | D79: ='Input Data'!D49+'Input Data'!D51 -> 6149.988161 | E79: ='Input Data'!E49+'Input Data'!E51 -> 7339.874779 | F79: ='Input Data'!F49+'Input Data'!F51 -> 8497.536482 | G79: ='Input Data'!G49+'Input Data'!G51 -> 9770.050284
A80: Major LED | B80: # | C80: ='Input Data'!C52 -> 0 | D80: ='Input Data'!D52 -> 0 | E80: ='Input Data'!E52 -> 0 | F80: ='Input Data'!F52 -> 0 | G80: ='Input Data'!G52 -> 0
A81: Minor LED | B81: # | C81: ='Input Data'!C53 -> 0 | D81: ='Input Data'!D53 -> 0 | E81: ='Input Data'!E53 -> 0 | F81: ='Input Data'!F53 -> 0 | G81: ='Input Data'!G53 -> 0
A82: Total | B82: # | C82: =SUM(C78:C81) -> 6936.454742 | D82: =SUM(D78:D81) -> 8527.467043 | E82: =SUM(E78:E81) -> 10205.13271 | F82: =SUM(F78:F81) -> 11826.09308 | G82: =SUM(G78:G81) -> 13589.90996
A84: NPL2 (Gifted & Ergon Operated)
A85: Major Conventional | B85: # | C85: ='Input Data'!C57+'Input Data'!C59 -> 1120.587207 | D85: ='Input Data'!D57+'Input Data'!D59 -> 1367.048312 | E85: ='Input Data'!E57+'Input Data'!E59 -> 1641.351016 | F85: ='Input Data'!F57+'Input Data'!F59 -> 1907.825093 | G85: ='Input Data'!G57+'Input Data'!G59 -> 2202.909333
A86: Minor Conventional | B86: # | C86: ='Input Data'!C58+'Input Data'!C60 -> 2990.398481 | D86: ='Input Data'!D58+'Input Data'!D60 -> 3618.026025 | E86: ='Input Data'!E58+'Input Data'!E60 -> 4309.150517 | F86: ='Input Data'!F58+'Input Data'!F60 -> 4970.514213 | G86: ='Input Data'!G58+'Input Data'!G60 -> 5744.91879
A87: Major LED | B87: # | C87: ='Input Data'!C61 -> 0 | D87: ='Input Data'!D61 -> 0 | E87: ='Input Data'!E61 -> 0 | F87: ='Input Data'!F61 -> 0 | G87: ='Input Data'!G61 -> 0
A88: Minor LED | B88: # | C88: ='Input Data'!C62 -> 0 | D88: ='Input Data'!D62 -> 0 | E88: ='Input Data'!E62 -> 0 | F88: ='Input Data'!F62 -> 0 | G88: ='Input Data'!G62 -> 0
A89: Total | B89: # | C89: =SUM(C85:C88) -> 4110.985688 | D89: =SUM(D85:D88) -> 4985.074337 | E89: =SUM(E85:E88) -> 5950.501533 | F89: =SUM(F85:F88) -> 6878.339306 | G89: =SUM(G85:G88) -> 7947.828123
A90: Total Disposals | B90: # | C90: =SUM(C82,C89) -> 11047.44043 | D90: =SUM(D82,D89) -> 13512.54138 | E90: =SUM(E82,E89) -> 16155.63425 | F90: =SUM(F82,F89) -> 18704.43238 | G90: =SUM(G82,G89) -> 21537.73808
A92: Closing Population Public Lights
A93: NPL1 (Ergon Owned & Operated)
A94: Major Conventional | B94: # | C94: =(C46+C62-C78) -> 23845.64497 | D94: 21637.78571 | E94: 18772.52778 | F94: 15443.97118 | G94: 11624.11151
A95: Minor Conventional | B95: # | C95: 61176.46808 | D95: 55446.2925 | E95: 48106.41772 | F95: 39608.88124 | G95: 29838.83096
A96: Major LED | B96: # | C96: 2256.355035 | D96: 4634.214286 | E96: 7669.472219 | F96: 11178.02882 | G96: 15187.88849
A97: Minor LED | B97: # | C97: 5584.531925 | D97: 11489.7075 | E97: 19034.58228 | F97: 27757.11876 | G97: 37772.16904
A98: Total | B98: # | C98: =SUM(C94:C97) -> 92863 | D98: =SUM(D94:D97) -> 93208 | E98: =SUM(E94:E97) -> 93583 | F98: =SUM(F94:F97) -> 93988 | G98: =SUM(G94:G97) -> 94423
A100: NPL2 (Gifted & Ergon Operated)
A101: Major Conventional | B101: # | C101: =(C53+C69-C85) -> 14478.87657 | D101: 13231.36448 | E101: 11590.01346 | F101: 9682.188372 | G101: 7479.279039
A102: Minor Conventional | B102: # | C102: 38302.56995 | D102: 34975.57549 | E102: 30666.42498 | F102: 25695.91076 | G102: 19950.99197
A103: Major LED | B103: # | C103: 1590.123426 | D103: 3187.635519 | E103: 5178.986535 | F103: 7436.811628 | G103: 9989.720961
A104: Minor LED | B104: # | C104: 3871.430046 | D104: 7788.424506 | E104: 12687.57502 | F104: 18248.08924 | G104: 24583.00803
A105: Total | B105: # | C105: =SUM(C101:C104) -> 58243 | D105: =SUM(D101:D104) -> 59183 | E105: =SUM(E101:E104) -> 60123 | F105: =SUM(F101:F104) -> 61063 | G105: =SUM(G101:G104) -> 62003
A106: Grand Total | B106: # | C106: =SUM(C98,C105) -> 151106 | D106: =SUM(D98,D105) -> 152391 | E106: =SUM(E98,E105) -> 153706 | F106: =SUM(F98,F105) -> 155051 | G106: =SUM(G98,G105) -> 156426
A108: Average No of Lights
A109: NPL1 (Ergon Owned & Operated)
A110: Major Conventional | B110: # | C110: =(C46+C94)/2 -> 24809.01267 | D110: 22826.52516 | E110: 20205.15675 | F110: 17108.24948 | G110: 13534.04135
A111: Minor Conventional | B111: # | C111: 63681.32774 | D111: 58521.28658 | E111: 51776.35511 | F111: 43857.64948 | G111: 34723.8561
A112: Major LED | B112: # | C112: 1212.987333 | D112: 3360.474845 | E112: 6151.843252 | F112: 9423.750517 | G112: 13182.95865
A113: Minor LED | B113: # | C113: 3002.172256 | D113: 8327.213419 | E113: 15262.14489 | F113: 23395.85052 | G113: 32764.6439
A114: Total | B114: # | C114: =SUM(C110:C113) -> 92705.5 | D114: =SUM(D110:D113) -> 93035.5 | E114: =SUM(E110:E113) -> 93395.5 | F114: =SUM(F110:F113) -> 93785.5 | G114: =SUM(G110:G113) -> 94205.5
A116: NPL2 (Gifted & Ergon Operated)
A117: Major Conventional | B117: # | C117: =(C53+C101)/2 -> 15039.17018 | D117: 13914.88864 | E117: 12410.68897 | F117: 10636.10092 | G117: 8580.733706
A118: Minor Conventional | B118: # | C118: 39797.7692 | D118: 36784.58851 | E118: 32821.00023 | F118: 28181.16787 | G118: 22823.45137
A119: Major LED | B119: # | C119: 854.829822 | D119: 2329.111363 | E119: 4183.311027 | F119: 6307.899081 | G119: 8713.266294
A120: Minor LED | B120: # | C120: 2081.230805 | D120: 5684.411494 | E120: 10237.99977 | F120: 15467.83213 | G120: 21415.54863
A121: Total | B121: # | C121: =SUM(C117:C120) -> 57773 | D121: =SUM(D117:D120) -> 58713 | E121: =SUM(E117:E120) -> 59653 | F121: =SUM(F117:F120) -> 60593 | G121: =SUM(G117:G120) -> 61533
A122: Grand total | B122: # | C122: =SUM(C114,C121) -> 150478.5 | D122: =SUM(D114,D121) -> 151748.5 | E122: =SUM(E114,E121) -> 153048.5 | F122: =SUM(F114,F121) -> 154378.5 | G122: =SUM(G114,G121) -> 155738.5
A124: 2020-25 TSS Pricing Methodology
A125: Major Conventional | B125: # | C125: =SUM(C110+C117) -> 39848.18285 | D125: 36741.41379 | E125: 32615.84572 | F125: 27744.3504 | G125: 22114.77505
A126: Minor Conventional | B126: # | C126: 103479.0969 | D126: 95305.87509 | E126: 84597.35535 | F126: 72038.81735 | G126: 57547.30747
A127: Major LED | B127: # | C127: 2067.817155 | D127: 5689.586208 | E127: 10335.15428 | F127: 15731.6496 | G127: 21896.22495
A128: Minor LED | B128: # | C128: 5083.40306 | D128: 14011.62491 | E128: 25500.14465 | F128: 38863.68265 | G128: 54180.19253
A129: Total | B129: # | C129: =SUM(C125:C128) -> 150478.5 | D129: =SUM(D125:D128) -> 151748.5 | E129: =SUM(E125:E128) -> 153048.5 | F129: =SUM(F125:F128) -> 154378.5 | G129: =SUM(G125:G128) -> 155738.5
A131: Weighted Average No of Lights
A132: Major Conventional | C132: =ROUND(C125*'Input Data'!$C$82,0) -> 71727 | D132: =ROUND(D125*'Input Data'!$C$82,0) -> 66135 | E132: =ROUND(E125*'Input Data'!$C$82,0) -> 58709 | F132: =ROUND(F125*'Input Data'!$C$82,0) -> 49940 | G132: =ROUND(G125*'Input Data'!$C$82,0) -> 39807
A133: Minor Conventional | C133: =C126 -> 103479.0969 | D133: =D126 -> 95305.87509 | E133: =E126 -> 84597.35535 | F133: =F126 -> 72038.81735 | G133: =G126 -> 57547.30747
A134: Major LED | C134: =ROUND(C127*'Input Data'!$C$82,0) -> 3722 | D134: =ROUND(D127*'Input Data'!$C$82,0) -> 10241 | E134: =ROUND(E127*'Input Data'!$C$82,0) -> 18603 | F134: =ROUND(F127*'Input Data'!$C$82,0) -> 28317 | G134: =ROUND(G127*'Input Data'!$C$82,0) -> 39413
A135: Minor LED | C135: =C128 -> 5083.40306 | D135: =D128 -> 14011.62491 | E135: =E128 -> 25500.14465 | F135: =F128 -> 38863.68265 | G135: =G128 -> 54180.19253
A136: Total | C136: =SUM(C132:C135) -> 184011.5 | D136: =SUM(D132:D135) -> 185693.5 | E136: =SUM(E132:E135) -> 187409.5 | F136: =SUM(F132:F135) -> 189159.5 | G136: =SUM(G132:G135) -> 190947.5
A138: Price Components
A140: Opex Charge
A141: NPL1 (Ergon Owned & Operated)
A142: Major Conventional | B142: $/day/light Nominal | C142: =C$37*1000000/(C$125+C$126/'Input Data'!$C$81) -> 124.874125 | D142: =D$37*1000000/(D$125+D$126/'Input Data'!$C$81) -> 127.2444614 | E142: =E$37*1000000/(E$125+E$126/'Input Data'!$C$81) -> 129.5745583 | F142: =F$37*1000000/(F$125+F$126/'Input Data'!$C$81) -> 131.1323913 | G142: =G$37*1000000/(G$125+G$126/'Input Data'!$C$81) -> 130.853327
A143: Minor Conventional | B143: $/day/light Nominal | C143: =C142/'Input Data'!$C$81 -> 83.24941666 | D143: =D142/'Input Data'!$C$81 -> 84.82964095 | E143: =E142/'Input Data'!$C$81 -> 86.38303889 | F143: =F142/'Input Data'!$C$81 -> 87.42159423 | G143: =G142/'Input Data'!$C$81 -> 87.23555136
A144: Major LED | B144: $/day/light Nominal | C144: =C$38*1000000/(C$127+C$128/'Input Data'!$C$81) -> 115.5641522 | D144: =D$38*1000000/(D$127+D$128/'Input Data'!$C$81) -> 109.1353077 | E144: =E$38*1000000/(E$127+E$128/'Input Data'!$C$81) -> 103.3178798 | F144: =F$38*1000000/(F$127+F$128/'Input Data'!$C$81) -> 106.1197947 | G144: =G$38*1000000/(G$127+G$128/'Input Data'!$C$81) -> 109.0207374
A145: Minor LED | B145: $/day/light Nominal | C145: =C144/'Input Data'!$C$81 -> 77.0427681 | D145: =D144/'Input Data'!$C$81 -> 72.75687182 | E145: =E144/'Input Data'!$C$81 -> 68.87858653 | F145: =F144/'Input Data'!$C$81 -> 70.74652977 | G145: =G144/'Input Data'!$C$81 -> 72.68049159
A147: NPL2 (Gifted & Ergon Operated)
A148: Major Conventional | B148: $/day/light Nominal | C148: =C142 -> 124.874125 | D148: 127.2444614 | E148: 129.5745583 | F148: 131.1323913 | G148: 130.853327
A149: Minor Conventional | B149: $/day/light Nominal | C149: 83.24941666 | D149: 84.82964095 | E149: 86.38303889 | F149: 87.42159423 | G149: 87.23555136
A150: Major LED | B150: $/day/light Nominal | C150: 115.5641522 | D150: 109.1353077 | E150: 103.3178798 | F150: 106.1197947 | G150: 109.0207374
A151: Minor LED | B151: $/day/light Nominal | C151: 77.0427681 | D151: 72.75687182 | E151: 68.87858653 | F151: 70.74652977 | G151: 72.68049159
A153: Capex Charge
A154: NPL1 (Ergon Owned & Operated)
A155: Major Conventional | B155: $/day/light Nominal | C155: =C$39*1000000/(C$125+C$126/'Input Data'!$C$82)*(1-'Input Data'!$C$79) -> 100.374163 | D155: =D$39*1000000/(D$125+D$126/'Input Data'!$C$82)*(1-'Input Data'!$C$79) -> 105.7114145 | E155: =E$39*1000000/(E$125+E$126/'Input Data'!$C$82)*(1-'Input Data'!$C$79) -> 113.1453871 | F155: =F$39*1000000/(F$125+F$126/'Input Data'!$C$82)*(1-'Input Data'!$C$79) -> 121.6677196 | G155: =G$39*1000000/(G$125+G$126/'Input Data'!$C$82)*(1-'Input Data'!$C$79) -> 127.0396435
A156: Minor Conventional | B156: $/day/light Nominal | C156: =ROUND(C155/'Input Data'!$C$82,2) -> 55.76 | D156: =ROUND(D155/'Input Data'!$C$82,2) -> 58.73 | E156: =ROUND(E155/'Input Data'!$C$82,2) -> 62.86 | F156: =ROUND(F155/'Input Data'!$C$82,2) -> 67.59 | G156: =ROUND(G155/'Input Data'!$C$82,2) -> 70.58
A157: Major LED | B157: $/day/light Nominal | C157: =C$40*1000000/(C$127+C$128/'Input Data'!$C$82)*(1-'Input Data'!$C$79) -> 136.2956928 | D157: =D$40*1000000/(D$127+D$128/'Input Data'!$C$82)*(1-'Input Data'!$C$79) -> 134.6195707 | E157: =E$40*1000000/(E$127+E$128/'Input Data'!$C$82)*(1-'Input Data'!$C$79) -> 133.0196327 | F157: =F$40*1000000/(F$127+F$128/'Input Data'!$C$82)*(1-'Input Data'!$C$79) -> 135.1722535 | G157: =G$40*1000000/(G$127+G$128/'Input Data'!$C$82)*(1-'Input Data'!$C$79) -> 136.7710183
A158: Minor LED | B158: $/day/light Nominal | C158: =ROUND(C157/'Input Data'!$C$82,2) -> 75.72 | D158: =ROUND(D157/'Input Data'!$C$82,2) -> 74.79 | E158: =ROUND(E157/'Input Data'!$C$82,2) -> 73.9 | F158: =ROUND(F157/'Input Data'!$C$82,2) -> 75.1 | G158: =ROUND(G157/'Input Data'!$C$82,2) -> 75.98
A160: NPL2 (Gifted & Ergon Operated)
A161: Major Conventional | B161: $/day/light Nominal | C161: 0 | D161: 0 | E161: 0 | F161: 0 | G161: 0
A162: Minor Conventional | B162: $/day/light Nominal | C162: 0 | D162: 0 | E162: 0 | F162: 0 | G162: 0
A163: Major LED | B163: $/day/light Nominal | C163: 0 | D163: 0 | E163: 0 | F163: 0 | G163: 0
A164: Minor LED | B164: $/day/light Nominal | C164: 0 | D164: 0 | E164: 0 | F164: 0 | G164: 0
A166: Refurbishment Charge
A167: NPL1 (Ergon Owned & Operated)
A168: Major Conventional | B168: $/day/light Nominal | C168: =C$39*1000000/(C$125+C$126/'Input Data'!$C$82)*'Input Data'!$C$79 -> 11.15268478 | D168: =D$39*1000000/(D$125+D$126/'Input Data'!$C$82)*'Input Data'!$C$79 -> 11.74571272 | E168: =E$39*1000000/(E$125+E$126/'Input Data'!$C$82)*'Input Data'!$C$79 -> 12.57170968 | F168: =F$39*1000000/(F$125+F$126/'Input Data'!$C$82)*'Input Data'!$C$79 -> 13.51863552 | G168: =G$39*1000000/(G$125+G$126/'Input Data'!$C$82)*'Input Data'!$C$79 -> 14.11551595
A169: Minor Conventional | B169: $/day/light Nominal | C169: =ROUND(C168/'Input Data'!$C$82,2) -> 6.2 | D169: =ROUND(D168/'Input Data'!$C$82,2) -> 6.53 | E169: =ROUND(E168/'Input Data'!$C$82,2) -> 6.98 | F169: =ROUND(F168/'Input Data'!$C$82,2) -> 7.51 | G169: =ROUND(G168/'Input Data'!$C$82,2) -> 7.84
A170: Major LED | B170: $/day/light Nominal | C170: =C$40*1000000/(C$127+C$128/'Input Data'!$C$82)*'Input Data'!$C$79 -> 15.14396587 | D170: =D$40*1000000/(D$127+D$128/'Input Data'!$C$82)*'Input Data'!$C$79 -> 14.95773007 | E170: =E$40*1000000/(E$127+E$128/'Input Data'!$C$82)*'Input Data'!$C$79 -> 14.77995919 | F170: =F$40*1000000/(F$127+F$128/'Input Data'!$C$82)*'Input Data'!$C$79 -> 15.01913928 | G170: =G$40*1000000/(G$127+G$128/'Input Data'!$C$82)*'Input Data'!$C$79 -> 15.19677982
A171: Minor LED | B171: $/day/light Nominal | C171: =ROUND(C170/'Input Data'!$C$82,2) -> 8.41 | D171: =ROUND(D170/'Input Data'!$C$82,2) -> 8.31 | E171: =ROUND(E170/'Input Data'!$C$82,2) -> 8.21 | F171: =ROUND(F170/'Input Data'!$C$82,2) -> 8.34 | G171: =ROUND(G170/'Input Data'!$C$82,2) -> 8.44
A173: NPL2 (Gifted & Ergon Operated)
A174: Major Conventional | B174: $/day/light Nominal | C174: =C168 -> 11.15268478 | D174: 11.74571272 | E174: 12.57170968 | F174: 13.51863552 | G174: 14.11551595
A175: Minor Conventional | B175: $/day/light Nominal | C175: 6.2 | D175: 6.53 | E175: 6.98 | F175: 7.51 | G175: 7.84
A176: Major LED | B176: $/day/light Nominal | C176: 15.14396587 | D176: 14.95773007 | E176: 14.77995919 | F176: 15.01913928 | G176: 15.19677982
A177: Minor LED | B177: $/day/light Nominal | C177: 8.41 | D177: 8.31 | E177: 8.21 | F177: 8.34 | G177: 8.44
A179: Pricing Days in Year | B179: # | C179: 365.25 | D179: 365.25 | E179: 365.25 | F179: 365.25 | G179: 365.25
A181: Unsmoothed Prices
A183: NPL1 (Ergon Owned & Operated)
A184: Major Conventional | B184: $/day/light Nominal | C184: =SUM(C142,C155,C168)/C$179 -> 0.6472305895 | D184: 0.6699564371 | E184: 0.6989504589 | F184: 0.7291409897 | G184: 0.7447186489
A185: Minor Conventional | B185: $/day/light Nominal | C185: 0.3975617157 | D185: 0.4109230416 | E185: 0.42771537 | F185: 0.4449598747 | G185: 0.4535401817
A186: Major LED | B186: $/day/light Nominal | C186: 0.7310165937 | D186: 0.7083165187 | E186: 0.6875221676 | F186: 0.7017417863 | G186: 0.7145476675
A187: Minor LED | B187: $/day/light Nominal | C187: 0.44126699 | D187: 0.4267128592 | E187: 0.4133842205 | F187: 0.4221397119 | G187: 0.4301177046
A189: NPL2 (Gifted & Ergon Operated)
A190: Major Conventional | B190: $/day/light Nominal | C190: =SUM(C148,C174)/C$179 -> 0.3724211082 | D190: 0.3805343577 | E190: 0.3891752718 | F190: 0.3960329277 | G190: 0.3969030609
A191: Minor Conventional | B191: $/day/light Nominal | C191: 0.2448991558 | D191: 0.2501290649 | E191: 0.2556140695 | F191: 0.25990854 | G191: 0.2603026731
A192: Major LED | B192: $/day/light Nominal | C192: 0.3578593238 | D192: 0.3397482212 | E192: 0.3233342614 | F192: 0.3316603256 | G192: 0.3400890272
A193: Minor LED | B193: $/day/light Nominal | C193: 0.2339569284 | D193: 0.2219489988 | E193: 0.2110570473 | F193: 0.2165271178 | G193: 0.2220958018
A195: Smoothed Prices
A197: NPL1 (Ergon Owned & Operated)
A198: Major Conventional | B198: $/day/light Nominal | C198: =ROUND(C184*(1+'Input Data'!$C$88),5) -> 0.77964 | D198: =ROUND(C198*(1+'Input Data'!$C$85)*(1+'Input Data'!$C$87),5) -> 0.79913 | E198: =ROUND(D198*(1+'Input Data'!$C$85)*(1+'Input Data'!$C$87),5) -> 0.81911 | F198: =ROUND(E198*(1+'Input Data'!$C$85)*(1+'Input Data'!$C$87),5) -> 0.83959 | G198: =ROUND(F198*(1+'Input Data'!$C$85)*(1+'Input Data'!$C$87),5) -> 0.86058
A199: Minor Conventional | B199: $/day/light Nominal | C199: =ROUND(C185*(1+'Input Data'!$C$88),5) -> 0.47889 | D199: =ROUND(C199*(1+'Input Data'!$C$85)*(1+'Input Data'!$C$87),5) -> 0.49086 | E199: =ROUND(D199*(1+'Input Data'!$C$85)*(1+'Input Data'!$C$87),5) -> 0.50313 | F199: =ROUND(E199*(1+'Input Data'!$C$85)*(1+'Input Data'!$C$87),5) -> 0.51571 | G199: =ROUND(F199*(1+'Input Data'!$C$85)*(1+'Input Data'!$C$87),5) -> 0.5286
A200: Major LED | B200: $/day/light Nominal | C200: =ROUND(C186*(1+'Input Data'!$C$89),5) -> 0.81542 | D200: =ROUND(C200*(1+'Input Data'!$C$85)*(1+'Input Data'!$C$87),5) -> 0.83581 | E200: =ROUND(D200*(1+'Input Data'!$C$85)*(1+'Input Data'!$C$87),5) -> 0.85671 | F200: =ROUND(E200*(1+'Input Data'!$C$85)*(1+'Input Data'!$C$87),5) -> 0.87813 | G200: =ROUND(F200*(1+'Input Data'!$C$85)*(1+'Input Data'!$C$87),5) -> 0.90008
A201: Minor LED | B201: $/day/light Nominal | C201: =ROUND(C187*(1+'Input Data'!$C$89),5) -> 0.49222 | D201: =ROUND(C201*(1+'Input Data'!$C$85)*(1+'Input Data'!$C$87),5) -> 0.50453 | E201: =ROUND(D201*(1+'Input Data'!$C$85)*(1+'Input Data'!$C$87),5) -> 0.51714 | F201: =ROUND(E201*(1+'Input Data'!$C$85)*(1+'Input Data'!$C$87),5) -> 0.53007 | G201: =ROUND(F201*(1+'Input Data'!$C$85)*(1+'Input Data'!$C$87),5) -> 0.54332
A203: NPL2 (Gifted & Ergon Operated)
A204: Major Conventional | B204: $/day/light Nominal | C204: =ROUND(C190*(1+'Input Data'!$C$88),5) -> 0.44861 | D204: =ROUND(C204*(1+'Input Data'!$C$85)*(1+'Input Data'!$C$87),5) -> 0.45983 | E204: =ROUND(D204*(1+'Input Data'!$C$85)*(1+'Input Data'!$C$87),5) -> 0.47133 | F204: =ROUND(E204*(1+'Input Data'!$C$85)*(1+'Input Data'!$C$87),5) -> 0.48311 | G204: =ROUND(F204*(1+'Input Data'!$C$85)*(1+'Input Data'!$C$87),5) -> 0.49519
A205: Minor Conventional | B205: $/day/light Nominal | C205: =ROUND(C191*(1+'Input Data'!$C$88),5) -> 0.295 | D205: =ROUND(C205*(1+'Input Data'!$C$85)*(1+'Input Data'!$C$87),5) -> 0.30238 | E205: =ROUND(D205*(1+'Input Data'!$C$85)*(1+'Input Data'!$C$87),5) -> 0.30994 | F205: =ROUND(E205*(1+'Input Data'!$C$85)*(1+'Input Data'!$C$87),5) -> 0.31769 | G205: =ROUND(F205*(1+'Input Data'!$C$85)*(1+'Input Data'!$C$87),5) -> 0.32563
A206: Major LED | B206: $/day/light Nominal | C206: =ROUND(C192*(1+'Input Data'!$C$89),5) -> 0.39918 | D206: =ROUND(C206*(1+'Input Data'!$C$85)*(1+'Input Data'!$C$87),5) -> 0.40916 | E206: =ROUND(D206*(1+'Input Data'!$C$85)*(1+'Input Data'!$C$87),5) -> 0.41939 | F206: =ROUND(E206*(1+'Input Data'!$C$85)*(1+'Input Data'!$C$87),5) -> 0.42987 | G206: =ROUND(F206*(1+'Input Data'!$C$85)*(1+'Input Data'!$C$87),5) -> 0.44062
A207: Minor LED | B207: $/day/light Nominal | C207: =ROUND(C193*(1+'Input Data'!$C$89),5) -> 0.26097 | D207: =ROUND(C207*(1+'Input Data'!$C$85)*(1+'Input Data'!$C$87),5) -> 0.26749 | E207: =ROUND(D207*(1+'Input Data'!$C$85)*(1+'Input Data'!$C$87),5) -> 0.27418 | F207: =ROUND(E207*(1+'Input Data'!$C$85)*(1+'Input Data'!$C$87),5) -> 0.28103 | G207: =ROUND(F207*(1+'Input Data'!$C$85)*(1+'Input Data'!$C$87),5) -> 0.28806
A209: Recovered Revenue
A211: Recovered revenue Conventional | B211: $M Nominal | C211: =(SUMPRODUCT(C198:C199,C110:C111)+SUMPRODUCT(C204:C205,C117:C118))*C179/1000000 -> 24.95589389 | D211: =(SUMPRODUCT(D198:D199,D110:D111)+SUMPRODUCT(D204:D205,D117:D118))*D179/1000000 -> 23.55443445 | E211: 21.41188797 | F211: 18.65442258 | G211: 15.22480693
A212: NPV of recovered revenue Conventional | B212: $M Nominal | C212: =NPV('Input Data'!C$86,C211:G211) -> 89.77739416
A213: NPV of revenue requirement Conventional | B213: $M Nominal | C213: =NPV('Input Data'!C$86,C$32:G$32) -> 89.77728854
A214: Difference Conventional | B214: $M Nominal | C214: =C212-C213 -> 0.0001056255108
A216: Recovered revenue LED | B216: $M Nominal | C216: =(SUMPRODUCT(C200:C201,C112:C113)+SUMPRODUCT(C206:C207,C119:C120))*C179/1000000 -> 1.224023291 | D216: =(SUMPRODUCT(D200:D201,D112:D113)+SUMPRODUCT(D206:D207,D119:D120))*D179/1000000 -> 3.463866602 | E216: =(SUMPRODUCT(E200:E201,E112:E113)+SUMPRODUCT(E206:E207,E119:E120))*E179/1000000 -> 6.473875388 | F216: =(SUMPRODUCT(F200:F201,F112:F113)+SUMPRODUCT(F206:F207,F119:F120))*F179/1000000 -> 10.13028836 | G216: =(SUMPRODUCT(G200:G201,G112:G113)+SUMPRODUCT(G206:G207,G119:G120))*G179/1000000 -> 14.49151512
A217: NPV of recovered revenue LED | B217: $M Nominal | C217: =NPV('Input Data'!C$86,C216:G216) -> 29.05936627
A218: NPV of revenue requirement LED | B218: $M Nominal | C218: =NPV('Input Data'!C$86,C$33:G$33) -> 29.0593189
A219: Difference LED | B219: $M Nominal | C219: =C217-C218 -> 4.73721163e-05

Sheet Output Tables
A1: Public Lighting Prices | B1: 2020-21 | D1: 2021-22 | F1: 2022-23 | H1: 2023-24 | J1: 2024-25
B2: Conventional | C2: LED | D2: Conventional | E2: LED | F2: Conventional | G2: LED | H2: Conventional | I2: LED | J2: Conventional | K2: LED
A3: NPL1 (Ergon Owned & Operated)
A4: Major | B4: ='Public Lighting Pricing'!C198 -> 0.77964 | C4: ='Public Lighting Pricing'!C200 -> 0.81542 | D4: ='Public Lighting Pricing'!D198 -> 0.79913 | E4: ='Public Lighting Pricing'!D200 -> 0.83581 | F4: ='Public Lighting Pricing'!E198 -> 0.81911 | G4: ='Public Lighting Pricing'!E200 -> 0.85671 | H4: ='Public Lighting Pricing'!F198 -> 0.83959 | I4: ='Public Lighting Pricing'!F200 -> 0.87813 | J4: ='Public Lighting Pricing'!G198 -> 0.86058 | K4: ='Public Lighting Pricing'!G200 -> 0.90008
A5: Minor | B5: ='Public Lighting Pricing'!C199 -> 0.47889 | C5: ='Public Lighting Pricing'!C201 -> 0.49222 | D5: ='Public Lighting Pricing'!D199 -> 0.49086 | E5: ='Public Lighting Pricing'!D201 -> 0.50453 | F5: ='Public Lighting Pricing'!E199 -> 0.50313 | G5: ='Public Lighting Pricing'!E201 -> 0.51714 | H5: ='Public Lighting Pricing'!F199 -> 0.51571 | I5: ='Public Lighting Pricing'!F201 -> 0.53007 | J5: ='Public Lighting Pricing'!G199 -> 0.5286 | K5: ='Public Lighting Pricing'!G201 -> 0.54332
A6: NPL2 (Gifted & Ergon Operated)
A7: Major | B7: ='Public Lighting Pricing'!C204 -> 0.44861 | C7: ='Public Lighting Pricing'!C206 -> 0.39918 | D7: ='Public Lighting Pricing'!D204 -> 0.45983 | E7: ='Public Lighting Pricing'!D206 -> 0.40916 | F7: ='Public Lighting Pricing'!E204 -> 0.47133 | G7: ='Public Lighting Pricing'!E206 -> 0.41939 | H7: ='Public Lighting Pricing'!F204 -> 0.48311 | I7: ='Public Lighting Pricing'!F206 -> 0.42987 | J7: ='Public Lighting Pricing'!G204 -> 0.49519 | K7: ='Public Lighting Pricing'!G206 -> 0.44062
A8: Minor | B8: ='Public Lighting Pricing'!C205 -> 0.295 | C8: ='Public Lighting Pricing'!C207 -> 0.26097 | D8: ='Public Lighting Pricing'!D205 -> 0.30238 | E8: ='Public Lighting Pricing'!D207 -> 0.26749 | F8: ='Public Lighting Pricing'!E205 -> 0.30994 | G8: ='Public Lighting Pricing'!E207 -> 0.27418 | H8: ='Public Lighting Pricing'!F205 -> 0.31769 | I8: ='Public Lighting Pricing'!F207 -> 0.28103 | J8: ='Public Lighting Pricing'!G205 -> 0.32563 | K8: ='Public Lighting Pricing'!G207 -> 0.28806
A9: NPL4
A10: Major | C10: 0.71 | E10: =ROUND(C10*(1+'Input Data'!$C$85)*(1+'Input Data'!$C$87),5) -> 0.72775 | G10: =ROUND(E10*(1+'Input Data'!$C$85)*(1+'Input Data'!$C$87),5) -> 0.74594 | I10: =ROUND(G10*(1+'Input Data'!$C$85)*(1+'Input Data'!$C$87),5) -> 0.76459 | K10: =ROUND(I10*(1+'Input Data'!$C$85)*(1+'Input Data'!$C$87),5) -> 0.7837
A11: Minor | C11: 0.44 | E11: =ROUND(C11*(1+'Input Data'!$C$85)*(1+'Input Data'!$C$87),5) -> 0.451 | G11: =ROUND(E11*(1+'Input Data'!$C$85)*(1+'Input Data'!$C$87),5) -> 0.46228 | I11: =ROUND(G11*(1+'Input Data'!$C$85)*(1+'Input Data'!$C$87),5) -> 0.47384 | K11: =ROUND(I11*(1+'Input Data'!$C$85)*(1+'Input Data'!$C$87),5) -> 0.48569
